bitfinex-derivatives/quotes_BTCF0:USTF0_20251028
["timestamp","ask_amount","ask_price","bid_price","bid_amount"]
[1761686119847,0.53798092,112760.0,112750.0,0.05875]
[1761686120043,0.3608,112760.0,112750.0,0.23593092]
[1761686121850,0.3608,112760.0,112750.0,0.50180004]
[1761686122441,0.3608,112760.0,112750.0,0.41311184]
[1761686124636,0.53798092,112760.0,112750.0,0.05875]
[1761686125751,0.74019872,112760.0,112740.0,0.01449]
[1761686126042,0.53798092,112750.0,112740.0,0.01449]
[1761686126347,0.5603378,112750.0,112740.0,0.01449]
[1761686126552,0.38315688,112750.0,112740.0,0.23593092]
[1761686126938,0.39255475,112750.0,112740.0,0.23593092]
[1761686127441,0.39255475,112750.0,112740.0,0.05875]
[1761686127651,0.53027475,112750.0,112740.0,0.23593092]
[1761686128442,0.52087688,112750.0,112740.0,0.27193092]
[1761686128654,0.38315688,112750.0,112740.0,0.44911184]
[1761686130154,0.38415688,112750.0,112740.0,0.44911184]
[1761686131344,0.38415688,112750.0,112740.0,0.27193092]
[1761686131543,0.5613378,112750.0,112740.0,0.05049]
[1761686131750,0.5613378,112750.0,112740.0,0.22767092]
[1761686131944,0.38415688,112750.0,112740.0,0.27193092]
[1761686133451,0.38415688,112750.0,112740.0,0.09475]
[1761686133658,0.38415688,112750.0,112740.0,0.27193092]
[1761686133842,0.38415688,112750.0,112740.0,0.09475]
[1761686134042,0.38415688,112750.0,112740.0,0.27193092]
[1761686135261,0.5613378,112750.0,112740.0,0.07312]
[1761686135445,0.5613378,112750.0,112740.0,0.0955]
[1761686135848,0.5613378,112750.0,112740.0,0.27268092]
[1761686137956,0.7016978,112750.0,112740.0,0.05049]
[1761686138158,0.6990178,112750.0,112740.0,0.05049]
[1761686138469,0.6990178,112750.0,112740.0,0.09449]
[1761686138663,0.38415688,112750.0,112740.0,0.27167092]
[1761686138964,0.38415688,112750.0,112740.0,0.44885184]
[1761686139259,0.38415688,112750.0,112740.0,0.58649184]
[1761686139854,0.38415688,112750.0,112740.0,0.23213]
[1761686140056,0.38415688,112750.0,112740.0,0.40931092]
[1761686142456,0.5613378,112750.0,112740.0,0.40931092]
[1761686143557,0.38415688,112750.0,112740.0,0.40931092]
[1761686144552,0.38415688,112750.0,112740.0,0.23213]
[1761686144751,0.37915688,112750.0,112740.0,0.40931092]
[1761686145667,0.3568,112750.0,112740.0,0.40931092]
[1761686145969,0.3568,112750.0,112740.0,0.23213]
[1761686146866,0.39198536,112750.0,112740.0,0.036]
[1761686147165,0.56905262,112750.0,112730.0,0.0131]
[1761686147464,0.67810726,112740.0,112720.0,0.03469]
[1761686147659,0.53786726,112730.0,112720.0,0.05707]
[1761686148361,0.53786726,112730.0,112720.0,0.03469]
[1761686149159,0.53786726,112730.0,112720.0,0.05969]
[1761686149669,0.53986726,112730.0,112720.0,0.06169]
[1761686150161,0.3628,112730.0,112720.0,0.027]
[1761686150369,0.56524356,112730.0,112720.0,0.027]
[1761686150762,0.54254726,112730.0,112720.0,0.027]
[1761686150962,0.56254726,112730.0,112720.0,0.027]
[1761686151165,0.58524239,112730.0,112700.0,0.0131]
[1761686151465,0.89866726,112710.0,112690.0,0.12064515]
[1761686151670,0.67542726,112700.0,112690.0,0.12064515]
[1761686151871,0.67542726,112700.0,112690.0,0.07664515]
[1761686152168,0.67542726,112700.0,112690.0,0.0131]
[1761686152562,0.68486879,112700.0,112690.0,0.0131]
[1761686152869,0.50880153,112700.0,112690.0,0.0661]
[1761686153166,0.37224153,112700.0,112690.0,0.04372]
[1761686153485,0.50976153,112700.0,112690.0,0.0661]
[1761686155168,0.37224153,112700.0,112690.0,0.0661]
[1761686155869,0.50976153,112700.0,112690.0,0.12964515]
[1761686158772,0.3628,112700.0,112690.0,0.30671241]
[1761686158960,0.3628,112700.0,112690.0,0.44423241]
[1761686159467,0.3628,112700.0,112690.0,1.14920557]
[1761686159873,0.3628,112700.0,112690.0,1.15188557]
[1761686160071,0.002,112700.0,112690.0,1.14920557]
[1761686160275,0.002,112700.0,112690.0,1.06315027]
[1761686161175,0.002,112700.0,112690.0,1.15188557]
[1761686161370,0.002,112700.0,112690.0,1.06315027]
[1761686161673,0.002,112700.0,112690.0,1.06047027]
[1761686162970,0.3628,112700.0,112690.0,1.06047027]
[1761686163174,0.3628,112700.0,112690.0,0.98068726]
[1761686163866,0.3628,112700.0,112690.0,1.04423137]
[1761686164268,0.3628,112700.0,112690.0,0.28340301]
[1761686164682,0.3628,112700.0,112690.0,0.20362]
[1761686165570,0.3628,112700.0,112690.0,0.26715078]
[1761686165772,0.3618,112700.0,112690.0,0.25815078]
[1761686165976,0.3738,112700.0,112690.0,0.26115078]
[1761686166275,0.3738,112700.0,112690.0,0.19762]
[1761686166479,0.3738,112700.0,112690.0,0.0161]
[1761686166677,0.3738,112700.0,112690.0,0.003]
[1761686166879,0.3728,112700.0,112690.0,0.01664]
[1761686167071,0.3738,112700.0,112690.0,0.06207]
[1761686170477,0.3738,112700.0,112690.0,0.01664]
[1761686172081,0.51124,112700.0,112690.0,0.03831]
[1761686172277,0.3738,112700.0,112690.0,0.06156]
[1761686174781,0.3738,112700.0,112690.0,0.003]
[1761686174980,0.3608,112690.0,112660.0,0.18921865]
[1761686175179,0.50869219,112680.0,112640.0,0.07978301]
[1761686175371,0.37129219,112650.0,112640.0,0.07978301]
[1761686175682,0.1374,112650.0,112630.0,0.21088865]
[1761686175881,0.51137219,112650.0,112640.0,0.07978301]
[1761686176078,0.89178575,112650.0,112630.0,0.07978301]
[1761686176276,0.3608,112640.0,112630.0,0.10145301]
[1761686176484,0.3608,112640.0,112620.0,0.13752301]
[1761686176676,0.4982,112630.0,112620.0,0.13752301]
[1761686177277,0.4982,112630.0,112620.0,0.01282]
[1761686177779,0.50747931,112630.0,112620.0,0.01282]
[1761686177986,0.50747931,112630.0,112620.0,0.03449]
[1761686178186,0.52347931,112630.0,112620.0,0.03749]
[1761686178587,0.38607931,112630.0,112620.0,0.01582]
[1761686178781,0.38607931,112630.0,112620.0,0.06074]
[1761686178986,0.52447931,112630.0,112620.0,0.06074]
[1761686179182,0.38707931,112630.0,112620.0,0.06074]
[1761686179397,0.51530277,112630.0,112620.0,0.06074]
[1761686179778,0.37790277,112630.0,112620.0,0.06074]
[1761686179976,0.51530277,112630.0,112620.0,0.06074]
[1761686180183,0.37790277,112630.0,112620.0,0.06074]
[1761686180983,0.37790277,112630.0,112620.0,0.14052301]
[1761686181184,0.37790277,112630.0,112620.0,0.06074]
[1761686193106,0.37790277,112630.0,112620.0,0.43203219]
[1761686193903,0.01710277,112630.0,112620.0,0.52082249]
[1761686194100,0.01710277,112630.0,112620.0,0.88430249]
[1761686195104,0.01710277,112630.0,112620.0,0.79283219]
[1761686195307,0.01710277,112630.0,112620.0,0.88162269]
[1761686195802,0.01710277,112630.0,112620.0,0.79283219]
[1761686195995,0.01710277,112630.0,112620.0,0.06074]
[1761686196899,0.37790277,112630.0,112620.0,0.1981]
[1761686197402,0.01710277,112630.0,112620.0,0.1981]
[1761686197604,0.01710277,112630.0,112620.0,0.06074]
[1761686197803,0.01710277,112630.0,112620.0,0.1981]
[1761686198196,0.37790277,112630.0,112620.0,0.1981]
[1761686205209,0.37790277,112630.0,112620.0,0.56939219]
[1761686205506,0.37790277,112630.0,112620.0,1.17207219]
[1761686205507,0.01710277,112630.0,112620.0,1.17207219]
[1761686205806,0.01710277,112630.0,112620.0,1.07789781]
[1761686205994,0.01710277,112630.0,112620.0,1.07521781]
[1761686206898,0.01710277,112630.0,112620.0,1.43601781]
[1761686207097,0.01710277,112630.0,112620.0,1.43869781]
[1761686207600,0.01710277,112630.0,112620.0,1.07789781]
[1761686207801,0.01710277,112630.0,112620.0,1.43869781]
[1761686208308,0.01710277,112630.0,112620.0,1.1589]
[1761686208496,0.01710277,112630.0,112620.0,1.52748801]
[1761686210006,0.01710277,112630.0,112620.0,1.52480801]
[1761686210193,0.01710277,112630.0,112620.0,1.1589]
[1761686210400,0.01710277,112630.0,112620.0,1.43601781]
[1761686210900,0.01710277,112630.0,112620.0,1.52480801]
[1761686211102,0.38469118,112660.0,112650.0,0.05768]
[1761686211306,0.38673824,112660.0,112650.0,0.19496]
[1761686211899,0.38673824,112660.0,112650.0,0.47207781]
[1761686212603,0.40673824,112660.0,112650.0,0.47407781]
[1761686213107,0.04793824,112660.0,112650.0,0.47407781]
[1761686213308,0.40873824,112660.0,112650.0,0.47407781]
[1761686214006,0.04793824,112660.0,112650.0,0.47407781]
[1761686214811,0.40873824,112660.0,112650.0,0.47407781]
[1761686215802,0.04793824,112660.0,112650.0,0.47407781]
[1761686216305,0.04793824,112660.0,112650.0,0.57205058]
[1761686216512,0.04793824,112660.0,112650.0,0.84408408]
[1761686216713,0.04593824,112660.0,112650.0,0.93385058]
[1761686216901,0.02593824,112660.0,112650.0,0.48228408]
[1761686217208,0.02893824,112660.0,112650.0,0.95185058]
[1761686217410,0.02893824,112660.0,112650.0,0.95085058]
[1761686217602,0.02893824,112660.0,112650.0,0.86508408]
[1761686217803,0.02893824,112660.0,112650.0,0.50428408]
[1761686218004,0.02893824,112660.0,112650.0,0.59305058]
[1761686218204,0.02893824,112660.0,112650.0,0.95385058]
[1761686218405,0.02893824,112660.0,112650.0,0.59305058]
[1761686218606,0.02893824,112660.0,112650.0,0.50428408]
[1761686218815,0.02893824,112660.0,112650.0,0.86508408]
[1761686219107,0.02993824,112660.0,112650.0,0.50728408]
[1761686220210,0.02993824,112660.0,112650.0,0.23016627]
[1761686220410,0.39073824,112660.0,112650.0,0.49799781]
[1761686220610,0.02993824,112660.0,112650.0,0.49799781]
[1761686220815,0.39073824,112660.0,112650.0,0.08368]
[1761686221029,0.39073824,112660.0,112650.0,0.03917]
[1761686221311,0.41462942,112660.0,112650.0,0.026]
[1761686221504,0.41462942,112660.0,112650.0,0.03917]
[1761686222414,0.41730942,112660.0,112650.0,0.03917]
[1761686222605,0.41462942,112660.0,112650.0,0.06094]
[1761686223816,0.39073824,112660.0,112650.0,0.36079781]
[1761686224616,0.39073824,112660.0,112650.0,0.08368]
[1761686224910,0.02993824,112660.0,112650.0,0.08368]
[1761686225304,0.02993824,112660.0,112650.0,0.36079781]
[1761686225503,0.004,112660.0,112650.0,0.72159781]
[1761686225816,0.004,112660.0,112650.0,0.36079781]
[1761686226007,0.02952581,112660.0,112650.0,0.36079781]
[1761686226203,0.004,112660.0,112650.0,0.36079781]
[1761686226810,0.004,112660.0,112650.0,0.72159781]
[1761686227013,0.004,112660.0,112650.0,0.36079781]
[1761686228425,0.02389118,112690.0,112680.0,0.05833]
[1761686228716,0.41586157,112700.0,112690.0,0.05833]
[1761686228915,0.44058836,112700.0,112690.0,0.05833]
[1761686229111,0.40941797,112700.0,112690.0,0.05833]
[1761686229315,0.38552679,112700.0,112690.0,0.33544781]
[1761686229518,0.02472679,112700.0,112690.0,0.42418291]
[1761686229721,0.02472679,112700.0,112690.0,0.69624781]
[1761686230212,0.41586157,112720.0,112690.0,0.78498301]
[1761686230513,0.44040413,112720.0,112710.0,0.04499]
[1761686231112,0.40923374,112720.0,112710.0,0.04499]
[1761686231915,0.40923374,112720.0,112710.0,0.32210781]
[1761686232222,0.05443374,112720.0,112710.0,0.32310781]
[1761686232423,0.03054256,112720.0,112710.0,0.32310781]
[1761686232817,0.05443374,112720.0,112710.0,0.32310781]
[1761686233322,0.39134256,112720.0,112710.0,0.32310781]
[1761686233523,0.39134256,112720.0,112710.0,0.04599]
[1761686234314,0.39134256,112720.0,112710.0,0.32310781]
[1761686236414,0.39134256,112720.0,112710.0,0.33644781]
[1761686236816,0.3668,112720.0,112710.0,0.33644781]
[1761686241227,0.3668,112720.0,112710.0,0.05933]
[1761686241430,0.3668,112720.0,112710.0,0.33644781]
[1761686241730,0.006,112720.0,112710.0,0.33644781]
[1761686242634,0.3668,112720.0,112710.0,0.05933]
[1761686245634,0.3668,112720.0,112710.0,0.33644781]
[1761686246235,0.006,112720.0,112710.0,0.42516711]
[1761686246433,0.006,112720.0,112710.0,0.78864711]
[1761686246822,0.006,112720.0,112710.0,1.38864711]
[1761686249735,0.3728,112750.0,112740.0,0.19729]
[1761686249930,0.3608,112750.0,112740.0,0.19529]
[1761686250130,0.3628,112750.0,112740.0,0.19629]
[1761686250535,0.3618,112750.0,112740.0,0.19529]
[1761686250736,0.3628,112750.0,112740.0,0.20029]
[1761686253239,0.38703204,112750.0,112740.0,0.20029]
[1761686253939,0.38703204,112750.0,112740.0,0.47740781]
[1761686254732,0.02623204,112750.0,112740.0,0.47740781]
[1761686255232,0.0262466,112750.0,112740.0,0.47740781]
[1761686255640,0.3870466,112750.0,112740.0,0.20029]
[1761686259239,0.3870466,112750.0,112740.0,0.47740781]
[1761686259638,0.0262466,112750.0,112740.0,0.47740781]
[1761686259834,0.0262466,112750.0,112740.0,0.56610361]
[1761686260034,0.0262466,112750.0,112740.0,0.47740781]
[1761686260436,0.0262466,112750.0,112740.0,0.48632189]
[1761686261242,0.0262466,112750.0,112740.0,0.57501749]
[1761686262541,0.0262466,112750.0,112740.0,0.93581749]
[1761686263442,0.0262466,112750.0,112740.0,0.93849749]
[1761686263743,0.0262466,112750.0,112740.0,0.93581749]
[1761686263944,0.002,112750.0,112740.0,0.93849749]
[1761686265234,0.02592896,112750.0,112740.0,0.93849749]
[1761686265750,0.02592896,112750.0,112740.0,0.93581749]
[1761686265941,0.02592896,112750.0,112740.0,0.93849749]
[1761686266442,0.02592896,112750.0,112740.0,0.93581779]
[1761686267147,0.02592896,112750.0,112740.0,0.84712189]
[1761686267333,0.02592896,112750.0,112740.0,1.53581779]
[1761686267645,0.02592896,112750.0,112740.0,0.84696189]
[1761686267835,0.02592896,112750.0,112740.0,0.56984408]
[1761686268840,0.02592896,112750.0,112740.0,0.65854018]
[1761686269041,0.02592896,112750.0,112740.0,0.56984408]
[1761686269437,0.02592896,112750.0,112740.0,0.65854018]
[1761686270238,0.02592896,112750.0,112740.0,0.56984408]
[1761686270540,0.02592896,112750.0,112740.0,1.02946723]
[1761686271447,0.02592896,112750.0,112740.0,0.94077113]
[1761686271649,0.02592896,112750.0,112740.0,0.06333]
[1761686271954,0.41062014,112750.0,112740.0,0.20009]
[1761686272247,0.41062014,112750.0,112740.0,0.57101705]
[1761686272743,0.41062014,112750.0,112740.0,0.20009]
[1761686272944,0.04982014,112750.0,112740.0,0.20009]
[1761686273143,0.41062014,112750.0,112740.0,0.20009]
[1761686274146,0.41062014,112750.0,112740.0,0.57101705]
[1761686274546,0.41062014,112750.0,112740.0,0.20009]
[1761686274848,0.04982014,112750.0,112740.0,1.02051305]
[1761686275042,0.02592896,112750.0,112740.0,1.02051305]
[1761686275443,0.02592896,112750.0,112740.0,1.02319305]
[1761686275846,0.05506157,112770.0,112750.0,0.1472882]
[1761686276148,0.05506157,112770.0,112760.0,0.92704705]
[1761686276549,0.05506157,112770.0,112760.0,0.56624705]
[1761686276749,0.02389118,112770.0,112760.0,0.56624705]
[1761686276951,0.05506157,112770.0,112760.0,0.56624705]
[1761686277351,0.05606157,112770.0,112760.0,0.56724705]
[1761686277758,0.001,112770.0,112760.0,0.56724705]
[1761686277957,0.40178,112780.0,112770.0,0.0586]
[1761686278259,0.42567118,112800.0,112790.0,0.0586]
[1761686278458,0.42567118,112800.0,112790.0,0.19532]
[1761686278757,0.3608,112800.0,112790.0,0.19532]
[1761686278949,0.40178,112800.0,112790.0,0.19532]
[1761686279946,0.40778,112800.0,112790.0,0.19632]
[1761686280361,0.40778,112800.0,112790.0,0.13768]
[1761686280658,0.05123,112790.0,112780.0,0.0227]
[1761686280842,0.41467,112790.0,112780.0,0.13668]
[1761686281059,0.41467,112790.0,112760.0,0.19528]
[1761686281060,0.04098,112770.0,112760.0,0.19528]
[1761686281243,0.02049,112780.0,112770.0,0.01263]
[1761686281450,0.40178,112790.0,112780.0,0.0586]
[1761686281655,0.40178,112790.0,112780.0,0.19528]
[1761686282750,0.40178,112790.0,112780.0,0.19828]
[1761686283453,0.40278,112790.0,112780.0,0.20028]
[1761686283952,0.41667,112790.0,112780.0,0.005]
[1761686284756,0.42598991,112790.0,112780.0,0.005]
[1761686284955,0.79691696,112790.0,112780.0,0.005]
[1761686285850,0.42334991,112790.0,112780.0,0.005]
[1761686286161,0.42598991,112790.0,112780.0,0.005]
[1761686287660,0.42334991,112790.0,112780.0,0.005]
[1761686287859,0.44592114,112790.0,112780.0,0.005]
[1761686289759,0.44592114,112790.0,112780.0,0.02804]
[1761686289954,0.42334991,112790.0,112780.0,0.005]
[1761686290660,0.44592199,112790.0,112780.0,0.005]
[1761686291161,0.55998991,112790.0,112780.0,0.005]
[1761686291459,0.52905301,112790.0,112780.0,0.005]
[1761686293252,0.55162621,112790.0,112780.0,0.005]
[1761686294365,0.51880301,112790.0,112780.0,0.06301]
[1761686295666,0.3728431,112790.0,112780.0,0.06301]
[1761686295959,0.38957765,112790.0,112780.0,0.02196]
[1761686296155,0.04294,112780.0,112770.0,0.05801]
[1761686296352,0.40374,112780.0,112770.0,0.05801]
[1761686298566,0.40474,112780.0,112770.0,0.05801]
[1761686299065,0.40474,112780.0,112770.0,0.06401]
[1761686299266,0.40574,112780.0,112770.0,0.06401]
[1761686299470,0.04494,112780.0,112770.0,0.06401]
[1761686299662,0.04394,112780.0,112770.0,0.05801]
[1761686299864,0.04494,112780.0,112770.0,0.06001]
[1761686300360,0.03722634,112780.0,112770.0,0.06001]
[1761686300758,0.03622634,112780.0,112770.0,0.05801]
[1761686300963,0.39802634,112780.0,112770.0,0.06001]
[1761686301164,0.002,112780.0,112770.0,0.43093705]
[1761686301364,0.002,112780.0,112770.0,0.88040945]
[1761686302266,0.002,112780.0,112770.0,1.48308945]
[1761686302869,0.001,112780.0,112770.0,1.48108945]
[1761686303169,0.41295814,112800.0,112790.0,0.05801]
[1761686303961,0.43539639,112800.0,112790.0,0.05801]
[1761686304162,0.41295814,112800.0,112790.0,0.05801]
[1761686304362,0.4374054,112800.0,112790.0,0.05901]
[1761686304564,0.42818726,112800.0,112790.0,0.05901]
[1761686304765,0.42918726,112800.0,112790.0,0.05901]
[1761686304965,0.43815392,112800.0,112790.0,0.05901]
[1761686305164,0.42918726,112800.0,112790.0,0.05901]
[1761686308164,0.02544726,112800.0,112790.0,0.87939365]
[1761686308377,0.04594,112800.0,112790.0,0.79073705]
[1761686308673,0.04594,112800.0,112790.0,0.05901]
[1761686308868,0.06840572,112800.0,112790.0,0.05901]
[1761686309174,0.06840572,112800.0,112790.0,0.19553]
[1761686309175,0.42920572,112800.0,112790.0,0.19553]
[1761686310175,0.06840572,112800.0,112790.0,0.19553]
[1761686310376,0.04663572,112800.0,112790.0,0.19553]
[1761686310674,0.06840572,112800.0,112790.0,0.19553]
[1761686310871,0.02546572,112800.0,112790.0,0.19553]
[1761686311062,0.003,112800.0,112790.0,0.55633]
[1761686311478,0.003,112800.0,112790.0,0.6449866]
[1761686311667,0.003,112800.0,112790.0,0.55633]
[1761686311869,0.02417,112800.0,112790.0,0.55633]
[1761686312172,0.003,112800.0,112790.0,0.6449866]
[1761686312369,0.003,112800.0,112790.0,0.6479866]
[1761686312370,0.002,112800.0,112790.0,0.6479866]
[1761686312568,0.001,112800.0,112790.0,0.6479866]
[1761686312769,0.001,112800.0,112790.0,0.55933]
[1761686312967,0.001,112800.0,112790.0,0.6479866]
[1761686313167,0.001,112800.0,112790.0,0.55933]
[1761686313368,0.02217,112800.0,112790.0,0.19853]
[1761686313570,0.04394,112800.0,112790.0,0.56945705]
[1761686314077,0.40474,112800.0,112790.0,0.43293705]
[1761686314277,0.40474,112800.0,112790.0,0.56941705]
[1761686314467,0.40474,112800.0,112790.0,0.19849]
[1761686314668,0.001,112800.0,112790.0,1.01887365]
[1761686315181,0.001,112800.0,112790.0,1.08230725]
[1761686316567,0.001,112800.0,112790.0,1.08494725]
[1761686316969,0.001,112800.0,112790.0,1.68494725]
[1761686317269,0.001,112800.0,112790.0,1.08494725]
[1761686317466,0.001,112800.0,112790.0,1.17360366]
[1761686318071,0.001,112800.0,112790.0,1.08230725]
[1761686318275,0.001,112800.0,112790.0,1.08494725]
[1761686320178,0.001,112800.0,112790.0,1.08230725]
[1761686320676,0.001,112800.0,112790.0,1.08494725]
[1761686320877,0.001,112800.0,112790.0,1.08230725]
[1761686321080,0.04498,112800.0,112790.0,0.85717065]
[1761686321378,0.04498,112800.0,112790.0,1.01879365]
[1761686321578,0.001,112800.0,112790.0,1.01879365]
[1761686321779,0.04498,112800.0,112790.0,0.93013705]
[1761686321973,0.02272,112800.0,112790.0,0.93013705]
[1761686322173,0.04498,112800.0,112790.0,0.93013705]
[1761686322373,0.04498,112800.0,112790.0,1.01879395]
[1761686322776,0.04498,112800.0,112790.0,0.93013705]
[1761686323276,0.40578,112800.0,112790.0,0.06201]
[1761686323485,0.04498,112800.0,112790.0,0.19841]
[1761686323674,0.40578,112800.0,112790.0,0.19841]
[1761686325580,0.41867,112800.0,112790.0,0.004]
[1761686326084,0.41603,112800.0,112790.0,0.004]
[1761686326284,0.41867,112800.0,112790.0,0.004]
[1761686326585,0.42766329,112800.0,112790.0,0.004]
[1761686327101,0.42766329,112800.0,112760.0,0.0770736]
[1761686327102,0.04398,112770.0,112760.0,0.0770736]
[1761686327386,0.40478,112770.0,112760.0,0.2428936]
[1761686327690,0.04398,112760.0,112750.0,0.2556336]
[1761686327872,0.40478,112760.0,112750.0,0.2556336]
[1761686328572,0.40478,112760.0,112750.0,0.1192736]
[1761686329284,0.41682837,112760.0,112750.0,0.1532736]
[1761686329485,0.40778,112760.0,112750.0,0.1532736]
[1761686330887,0.40778,112760.0,112750.0,0.1582736]
[1761686331083,0.41664978,112760.0,112750.0,0.1582736]
[1761686331681,0.40778,112760.0,112750.0,0.1582736]
[1761686332379,0.38552,112760.0,112750.0,0.1582736]
[1761686332584,0.003,112760.0,112750.0,0.43492086]
[1761686332886,0.003,112760.0,112750.0,0.82097406]
[1761686333088,0.003,112760.0,112750.0,0.90041096]
[1761686333288,0.003,112760.0,112750.0,0.81172416]
[1761686335677,0.003,112760.0,112750.0,0.90041096]
[1761686336585,0.003,112760.0,112750.0,0.81172416]
[1761686336984,0.02472,112760.0,112750.0,0.81172416]
[1761686337285,0.40778,112760.0,112750.0,0.09484]
[1761686337787,0.40778,112760.0,112750.0,0.3106369]
[1761686337989,0.40778,112760.0,112750.0,0.2312]
[1761686338194,0.40778,112760.0,112750.0,0.29455227]
[1761686338389,0.40778,112760.0,112750.0,0.2312]
[1761686338781,0.40778,112760.0,112750.0,0.29454839]
[1761686340988,0.41803,112760.0,112750.0,0.29454839]
[1761686341190,0.40778,112760.0,112750.0,0.29454839]
[1761686343689,0.58481627,112760.0,112750.0,0.47158466]
[1761686344289,0.40778,112760.0,112750.0,0.47158466]
[1761686344484,0.58481627,112760.0,112750.0,0.47158466]
[1761686345788,0.58481627,112760.0,112750.0,0.10234839]
[1761686345789,0.76453254,112760.0,112750.0,0.10234839]
[1761686346084,0.76185254,112760.0,112750.0,0.039]
[1761686346587,0.58481627,112760.0,112750.0,0.039]
[1761686347091,0.76185254,112760.0,112750.0,0.039]
[1761686347984,0.01025,112740.0,112730.0,0.21584625]
[1761686348184,0.76559,112740.0,112730.0,0.31412252]
[1761686348385,0.40479,112740.0,112730.0,0.23468562]
[1761686348596,0.40479,112740.0,112730.0,0.31412252]
[1761686348792,0.40479,112740.0,112730.0,0.23468562]
[1761686349189,0.40879,112740.0,112730.0,0.26868562]
[1761686350089,0.40879,112740.0,112730.0,0.27368562]
[1761686350487,0.40879,112740.0,112730.0,0.35312252]
[1761686351293,0.40526,112760.0,112750.0,0.05741]
[1761686351594,0.58229627,112760.0,112750.0,0.05741]
[1761686352491,0.42326,112760.0,112750.0,0.23544627]
[1761686352692,0.60029627,112760.0,112750.0,0.23544627]
[1761686353291,0.60129627,112760.0,112750.0,0.23544627]
[1761686354996,0.42426,112760.0,112750.0,0.23544627]
[1761686355196,0.60129627,112760.0,112750.0,0.23544627]
[1761686355789,0.42426,112760.0,112750.0,0.23544627]
[1761686362001,0.42426,112760.0,112750.0,0.001]
[1761686362002,0.77833254,112760.0,112750.0,0.001]
[1761686362299,0.77833254,112760.0,112750.0,0.13724]
[1761686362899,0.77833254,112760.0,112750.0,0.15962]
[1761686363093,0.77833254,112760.0,112750.0,0.02338]
[1761686363301,0.77833254,112760.0,112750.0,0.001]
[1761686363609,0.04446,112740.0,112730.0,0.19383935]
[1761686363807,0.22149627,112740.0,112730.0,0.19383935]
[1761686364002,0.76958254,112740.0,112730.0,0.18105935]
[1761686364795,0.76958254,112740.0,112730.0,0.18405935]
[1761686365597,0.76958254,112740.0,112730.0,0.19673935]
[1761686365905,0.60581013,112740.0,112730.0,0.19673935]
[1761686367207,0.60581013,112740.0,112730.0,0.06049935]
[1761686368302,0.96256267,112740.0,112730.0,0.00308935]
[1761686368508,0.7828464,112740.0,112730.0,0.00308935]
[1761686368801,0.7855264,112740.0,112730.0,0.00308935]
[1761686369197,0.96256267,112740.0,112730.0,0.0018695]
[1761686369396,0.96256267,112740.0,112700.0,0.14892]
[1761686369397,0.04446,112710.0,112700.0,0.19365]
[1761686369603,0.58229627,112710.0,112700.0,0.19365]
[1761686370100,0.58237913,112710.0,112700.0,0.19365]
[1761686371112,0.58837913,112710.0,112700.0,0.19365]
[1761686371808,0.58837913,112710.0,112700.0,0.19865]
[1761686372304,0.59862913,112710.0,112700.0,0.19865]
[1761686373007,0.58837913,112710.0,112700.0,0.04973]
[1761686373309,0.58837913,112710.0,112700.0,0.02738]
[1761686373510,0.58837913,112710.0,112700.0,0.06241]
[1761686374307,0.58837913,112710.0,112700.0,0.04973]
[1761686374907,0.58837913,112710.0,112700.0,0.0634]
[1761686376910,0.58837913,112710.0,112700.0,0.04973]
[1761686377800,0.9016154,112710.0,112700.0,0.005]
[1761686378209,0.04411,112690.0,112680.0,0.19304]
[1761686378504,0.40491,112690.0,112680.0,0.37908293]
[1761686378904,0.40491,112690.0,112680.0,0.37007627]
[1761686380708,0.41091,112690.0,112680.0,0.37007627]
[1761686380910,0.41091,112690.0,112680.0,0.37107627]
[1761686382706,0.05011,112690.0,112680.0,0.37107627]
[1761686383507,0.41091,112690.0,112680.0,0.37107627]
[1761686383811,0.58794627,112690.0,112680.0,0.37107627]
[1761686384205,0.41091,112690.0,112680.0,0.37107627]
[1761686385002,0.58794627,112690.0,112680.0,0.02259]
[1761686385203,0.76507487,112690.0,112680.0,0.001]
[1761686385403,0.90127487,112690.0,112680.0,0.001]
[1761686385604,0.54720233,112690.0,112680.0,0.04516]
[1761686385811,0.7242386,112690.0,112680.0,0.04516]
[1761686386012,0.7242386,112690.0,112680.0,0.02259]
[1761686386202,0.7242386,112690.0,112680.0,0.001]
[1761686386403,0.7242386,112690.0,112680.0,0.05883]
[1761686387413,0.54720233,112690.0,112680.0,0.05883]
[1761686387608,0.7242386,112690.0,112680.0,0.05883]
[1761686387912,1.0850386,112690.0,112680.0,0.05883]
[1761686389110,1.0850386,112690.0,112680.0,0.02259]
[1761686389312,1.0850386,112690.0,112680.0,0.001]
[1761686389503,1.0850386,112690.0,112680.0,0.04516]
[1761686389707,1.08528132,112690.0,112680.0,0.04516]
[1761686390913,0.90800233,112690.0,112680.0,0.04516]
[1761686391215,1.08528132,112690.0,112680.0,0.04516]
[1761686391808,0.90800233,112690.0,112680.0,0.05883]
[1761686392010,1.08528132,112690.0,112680.0,0.05883]
[1761686394911,1.08528132,112690.0,112680.0,0.04516]
[1761686397418,0.94908132,112690.0,112680.0,0.05883]
[1761686397614,0.90796233,112690.0,112680.0,0.05883]
[1761686399423,0.77180233,112690.0,112680.0,0.05883]
[1761686401722,0.75737922,112690.0,112680.0,0.13807524]
[1761686401922,0.75737922,112690.0,112680.0,0.05883]
[1761686404324,0.93465821,112690.0,112680.0,0.001]
[1761686407027,0.02632,112680.0,112670.0,0.00149428]
[1761686407220,0.88043798,112680.0,112670.0,0.00149428]
[1761686407425,0.87775798,112680.0,112670.0,0.00149428]
[1761686409123,0.90675798,112680.0,112670.0,0.00149428]
[1761686409627,0.90775798,112680.0,112670.0,0.00149428]
[1761686413421,0.91043798,112680.0,112670.0,0.00149428]
[1761686413621,0.90775798,112680.0,112670.0,0.00149428]
[1761686414634,0.96491068,112680.0,112670.0,0.00149428]
[1761686415330,0.98880935,112680.0,112670.0,0.00149428]
[1761686415728,0.99148935,112680.0,112670.0,0.00149428]
[1761686416931,0.63693137,112680.0,112670.0,0.00149428]
[1761686417126,0.78035997,112680.0,112670.0,0.02463428]
[1761686417331,0.78035997,112680.0,112670.0,0.00149428]
[1761686417629,0.64427997,112680.0,112670.0,0.00149428]
[1761686417822,0.7564613,112680.0,112670.0,0.04691428]
[1761686419432,0.96763896,112680.0,112670.0,0.00149428]
[1761686419739,0.02632,112660.0,112650.0,0.0582926]